fUSD/lending_fUSD_20250620
["ID","MTS","AMOUNT","RATE_DAILY","PERIOD"]
[366703497,1750415543133,-1060.66,0.00026838,4]
[366703498,1750415543143,-1271.04,0.00026838,4]
[366703499,1750415543153,-490.0,0.00026838,4]
[366703500,1750415543163,-1687.17,0.00026838,4]
[366703501,1750415543172,-490.0,0.00026838,4]
[366703502,1750415543183,-490.0,0.00026838,4]
[366703503,1750415543192,-1425.44,0.00026838,4]
[366703504,1750415543202,-490.0,0.00026838,4]
[366703505,1750415543213,-1260.23,0.00026838,4]
[366703506,1750415543223,-535.62,0.00026838,4]
[366703507,1750415543233,-600.47,0.00026838,4]
[366703508,1750415543243,-490.0,0.00026838,4]
[366703509,1750415543254,-7447.5,0.00026838,4]
[366703510,1750415543264,-490.0,0.00026838,4]
[366703511,1750415543275,-490.0,0.00026838,4]
[366703512,1750415543285,-490.0,0.00026838,4]
[366703513,1750415543295,-998.98,0.00026838,4]
[366703514,1750415543305,-490.0,0.00026838,4]
[366703515,1750415543314,-1377.1,0.00026838,4]
[366703516,1750415543324,-490.0,0.00026838,4]
[366703517,1750415543335,-4861.36,0.00026838,4]
[366703518,1750415543345,-1977.29,0.00026838,4]
[366703519,1750415543354,-490.0,0.00026838,4]
[366703520,1750415543365,-1276.4,0.00026838,4]
[366703521,1750415543375,-2235.26,0.00026838,4]
[366703522,1750415543385,-2488.9,0.00026838,4]
[366703523,1750415543395,-1190.82,0.00026838,4]
[366703524,1750415543404,-712.91,0.00026838,4]
[366703525,1750415543414,-1879.2,0.00026838,4]
[366703526,1750415543424,-490.0,0.00026838,4]
[366703527,1750415543433,-3348.43,0.00026838,4]
[366703528,1750415543443,-2145.92,0.00026838,4]
[366703529,1750415543453,-3119.56,0.00026838,4]
[366703530,1750415543462,-3273.4,0.00026838,4]
[366703531,1750415543472,-490.0,0.00026839,4]
[366703532,1750415543482,-490.0,0.00026839,4]
[366703533,1750415543491,-490.0,0.00026839,4]
[366703534,1750415543501,-490.0,0.00026839,4]
[366703535,1750415543511,-490.0,0.00026839,4]
[366703536,1750415543521,-1480.37,0.00026839,4]
[366703537,1750415543746,-490.0,0.00026839,4]
[366703538,1750415543779,-1643.1,0.00026839,4]
[366703539,1750415543789,-490.0,0.00026839,4]
[366703540,1750415543799,-490.0,0.00026839,4]
[366703541,1750415543808,-565.51,0.00026839,4]
[366703542,1750415543818,-492.45,0.00026839,4]
[366703543,1750415543828,-2032.33,0.00026839,4]
[366703544,1750415543837,-880.4,0.00026839,4]
[366703545,1750415543847,-490.0,0.00026839,4]
[366703546,1750415543857,-490.0,0.00026839,4]
[366703547,1750415543867,-1088.85,0.00026839,4]
[366703548,1750415543876,-490.0,0.00026839,4]
[366703549,1750415543886,-848.08,0.00026839,4]
[366703550,1750415543895,-490.0,0.00026839,4]
[366703551,1750415543905,-912.78,0.00026839,4]
[366703552,1750415543915,-1634.09,0.00026839,4]
[366703553,1750415543924,-1838.84,0.00026839,4]
[366703554,1750415543935,-895.29,0.00026839,4]
[366703555,1750415543944,-669.38,0.00026839,4]
[366703556,1750415543953,-818.8,0.00026839,4]
[366703557,1750415543963,-490.0,0.00026839,4]
[366703558,1750415543973,-1627.01,0.00026839,4]
[366703559,1750415543983,-490.0,0.00026839,4]
[366703560,1750415543992,-490.0,0.00026839,4]
[366703561,1750415544003,-490.0,0.00026839,4]
[366703562,1750415544013,-1078.58,0.00026839,4]
[366703563,1750415544023,-994.67,0.00026839,4]
[366703564,1750415544032,-771.65,0.00026839,4]
[366703565,1750415544042,-490.0,0.00026839,4]
[366703566,1750415544053,-490.0,0.00026839,4]
[366703567,1750415544064,-490.0,0.00026839,4]
[366703568,1750415544077,-694.41,0.00026839,4]
[366703569,1750415544087,-679.99,0.00026839,4]
[366703570,1750415544097,-490.0,0.00026839,4]
[366703571,1750415544107,-2362.55,0.00026839,4]
[366703572,1750415544120,-490.0,0.00026839,4]
[366703573,1750415544131,-490.0,0.00026839,4]
[366703574,1750415544141,-490.0,0.00026839,4]
[366703575,1750415544151,-592.8,0.00026839,4]
[366703576,1750415544162,-490.0,0.00026839,4]
[366703577,1750415544172,-490.0,0.00026839,4]
[366703578,1750415544183,-490.0,0.00026839,4]
[366703579,1750415544194,-542.79,0.00026839,4]
[366703580,1750415544205,-1385.22,0.00026839,4]
[366703581,1750415544216,-1591.3,0.00026839,4]
[366703582,1750415544226,-490.0,0.00026839,4]
[366703583,1750415544236,-1073.69,0.00026839,4]
[366703584,1750415544246,-490.0,0.00026839,4]
[366703585,1750415544257,-616.36,0.00026839,4]
[366703586,1750415544266,-490.0,0.00026839,4]
[366703587,1750415544277,-490.0,0.00026839,4]
[366703588,1750415544287,-490.0,0.00026839,4]
[366703589,1750415544297,-583.29,0.00026839,4]
[366703590,1750415544307,-1175.68,0.00026839,4]
[366703591,1750415544317,-1312.24,0.00026839,4]
[366703592,1750415544327,-1363.77,0.00026839,4]
[366703593,1750415544337,-490.0,0.00026839,4]
[366703594,1750415544347,-770.8,0.00026839,4]
[366703595,1750415544357,-997.01,0.00026839,4]
[366703596,1750415544367,-989.39,0.00026839,4]
[366703597,1750415544376,-567.86,0.00026839,4]
[366703598,1750415544386,-1096.04,0.00026839,4]
[366703599,1750415544397,-1520.45,0.00026839,4]
[366703600,1750415544407,-490.0,0.00026839,4]
[366703601,1750415544417,-805.39,0.00026839,4]
[366703602,1750415544427,-490.0,0.00026839,4]
[366703603,1750415544436,-490.0,0.00026839,4]
[366703604,1750415544446,-596.59,0.00026839,4]
[366703605,1750415544455,-1428.58,0.00026839,4]
[366703606,1750415544465,-490.0,0.00026839,4]
[366703607,1750415544476,-254.62173185,0.00026839,4]
[366703608,1750415544486,-490.0,0.00026839,4]
[366703609,1750415544496,-5382.53,0.00026839,4]
[366703610,1750415544506,-490.0,0.00026839,4]
[366703611,1750415544515,-703.96,0.00026839,4]
[366703612,1750415544525,-1669.54,0.00026839,4]
[366703613,1750415544535,-1601.56,0.00026839,4]
[366703614,1750415544545,-2721.61,0.00026839,4]
[366703615,1750415544554,-490.0,0.00026839,4]
[366703616,1750415544564,-741.54,0.00026839,4]
[366703617,1750415544575,-669.76,0.00026839,4]
[366703618,1750415544585,-1225.01,0.00026839,4]
[366703619,1750415544595,-2422.36,0.00026839,4]
[366703620,1750415544604,-1005.68,0.00026839,4]
[366703621,1750415544615,-490.0,0.00026839,4]
[366703622,1750415544624,-2138.59,0.00026839,4]
[366703623,1750415544635,-490.0,0.00026839,4]
[366703624,1750415544644,-998.16,0.00026839,4]
[366703625,1750415544654,-4396.87,0.00026839,4]
[366703626,1750415544665,-933.76,0.00026839,4]
[366703627,1750415544675,-897.22,0.00026839,4]
[366703628,1750415544685,-1489.74,0.00026839,4]
[366703629,1750415544696,-2632.99,0.00026839,4]
[366703630,1750415544707,-490.0,0.00026839,4]
[366703631,1750415544717,-2115.45,0.00026839,4]
[366703632,1750415544727,-1788.12,0.00026839,4]
[366703633,1750415544736,-969.59,0.00026839,4]
[366703634,1750415544748,-587.84,0.00026839,4]
[366703635,1750415544758,-490.0,0.00026839,4]
[366703636,1750415544768,-747.47,0.00026839,4]
[366703637,1750415544779,-629.05,0.00026839,4]
[366703638,1750415544789,-1158.39,0.00026839,4]
[366703639,1750415544799,-4900.18,0.00026839,4]
[366703640,1750415544809,-490.0,0.00026839,4]
[366703641,1750415544819,-1552.28,0.00026839,4]
[366703642,1750415544829,-215.94342499,0.00026839,4]
[366703643,1750415544839,-540.28,0.00026839,4]
[366703644,1750415544849,-490.0,0.00026839,4]
[366703645,1750415544859,-1986.49,0.00026839,4]
[366703646,1750415544869,-2142.56,0.00026839,4]
[366703647,1750415544879,-583.76857708,0.00026839,4]
[366703648,1750415544889,-675.46,0.00026839,4]
[366703649,1750415544898,-2131.24,0.00026839,4]
[366703650,1750415544908,-1335.47,0.00026839,4]
[366703651,1750415544918,-894.67,0.00026839,4]
[366703652,1750415544928,-3901.98,0.00026839,4]
[366703653,1750415544938,-694.78,0.00026839,4]
[366703654,1750415544947,-748.02,0.00026839,4]
[366703655,1750415544957,-2210.45,0.00026839,4]
[366703656,1750415544967,-1823.65,0.00026839,4]
[366703657,1750415544977,-479.17238259,0.00026839,4]
[366703658,1750415544987,-1839.21,0.00026839,4]
[366703659,1750415544997,-951.3,0.00026839,4]
[366703660,1750415545007,-490.0,0.00026839,4]
[366703661,1750415545019,-828.87,0.00026839,4]
[366703662,1750415545030,-828.66,0.00026839,4]
[366703663,1750415545039,-2336.71,0.00026839,4]
[366703664,1750415545049,-490.0,0.00026839,4]
[366703665,1750415545060,-1193.56,0.00026839,4]
[366703666,1750415545070,-603.13290255,0.00026839,4]
[366703667,1750415545080,-1201.91,0.00026839,4]
[366703668,1750415545090,-1533.32,0.00026839,4]
[366703669,1750415545100,-2402.13,0.00026839,4]
[366703670,1750415545112,-2054.14,0.00026839,4]
[366703671,1750415545123,-484.26,0.00026839,4]
[366703672,1750415545133,-1310.9,0.00026839,4]
[366703673,1750415545144,-490.0,0.00026849,4]
[366703674,1750415545155,-490.0,0.00026849,4]
[366703675,1750415545164,-490.0,0.00026849,4]
[366703676,1750415545175,-490.0,0.00026849,4]
[366703677,1750415545184,-490.0,0.00026849,4]
[366703678,1750415545194,-490.0,0.00026849,4]
[366703679,1750415545204,-495.28062695,0.00026849,4]
[366703680,1750415545214,-490.0,0.00026849,4]
[366703681,1750415545224,-490.0,0.00026849,4]
[366703682,1750415545234,-490.0,0.00026849,4]
[366703683,1750415545243,-490.0,0.00026849,4]
[366703684,1750415545254,-490.0,0.00026849,4]
[366703685,1750415545264,-490.0,0.00026849,4]
[366703686,1750415545274,-490.0,0.00026849,4]
[366703687,1750415545283,-490.0,0.00026849,4]
[366703688,1750415545293,-536.23,0.00026849,4]
[366703689,1750415545303,-490.0,0.00026849,4]
[366703690,1750415545313,-490.0,0.00026849,4]
[366703691,1750415545323,-490.0,0.00026849,4]
[366703692,1750415545333,-490.0,0.00026849,4]
[366703693,1750415545343,-686.65,0.00026849,4]
[366703694,1750415545353,-490.0,0.00026849,4]
[366703695,1750415545362,-897.84,0.00026849,4]
[366703696,1750415545372,-793.14,0.00026849,4]
[366703697,1750415545381,-490.0,0.00026849,4]
[366703698,1750415545392,-656.19,0.00026849,4]
[366703699,1750415545401,-490.0,0.00026849,4]
[366703700,1750415545411,-624.06,0.00026849,4]
[366703701,1750415545420,-490.0,0.00026849,4]
[366703702,1750415545439,-568.83,0.00026849,4]
[366703703,1750415545462,-402.69,0.00026849,4]
[366703704,1750415545485,-490.0,0.00026849,4]
[366703705,1750415545510,-496.92384213,0.00026849,4]
[366703706,1750415545528,-490.0,0.00026849,4]
[366703707,1750415545550,-414.9395929,0.00026849,4]
[366703708,1750415545575,-697.89,0.00026849,4]
[366703709,1750415545598,-490.0,0.00026849,4]
[366703710,1750415545622,-490.0,0.00026849,4]
[366703711,1750415545646,-490.0,0.00026849,4]
[366703712,1750415545666,-724.36,0.00026849,4]
[366703713,1750415545681,-490.0,0.00026849,4]
[366703714,1750415545703,-490.0,0.00026849,4]
[366703715,1750415545721,-490.0,0.00026849,4]
[366703716,1750415545740,-1029.22,0.00026849,4]
[366703717,1750415545760,-490.0,0.00026849,4]
[366703718,1750415545779,-490.0,0.00026849,4]
[366703719,1750415545796,-490.0,0.00026849,4]
[366703720,1750415545814,-490.0,0.00026849,4]
[366703721,1750415545834,-490.0,0.00026849,4]
[366703722,1750415545853,-490.0,0.00026849,4]
[366703723,1750415545876,-490.0,0.00026849,4]
[366703724,1750415545893,-490.0,0.00026849,4]
[366703725,1750415545911,-490.0,0.00026849,4]
[366703726,1750415545928,-490.0,0.00026849,4]
[366703727,1750415545947,-490.0,0.00026849,4]
[366703728,1750415545965,-817.57,0.00026849,4]
[366703729,1750415545982,-490.0,0.00026849,4]
[366703730,1750415546001,-490.0,0.00026849,4]
[366703731,1750415546020,-490.0,0.00026849,4]
[366703732,1750415546037,-860.55,0.00026849,4]
[366703733,1750415546056,-490.0,0.00026849,4]
[366703734,1750415546074,-490.0,0.00026849,4]
[366703735,1750415546092,-490.0,0.00026849,4]
[366703736,1750415546112,-490.0,0.00026849,4]
[366703737,1750415546133,-490.0,0.00026849,4]
[366703738,1750415546150,-490.0,0.00026849,4]
[366703739,1750415546168,-490.0,0.00026849,4]
[366703740,1750415546188,-490.0,0.00026849,4]
[366703741,1750415546207,-490.0,0.00026849,4]
[366703742,1750415546225,-490.0,0.00026849,4]
[366703743,1750415546243,-490.0,0.00026849,4]
[366703744,1750415546263,-490.0,0.00026849,4]
[366703745,1750415546281,-490.0,0.00026849,4]
[366703746,1750415546299,-490.0,0.00026849,4]
[366703747,1750415546318,-490.0,0.00026849,4]
[366703748,1750415546337,-490.0,0.00026849,4]
[366703749,1750415546355,-490.0,0.00026849,4]
[366703750,1750415546375,-650.85,0.00026849,4]
[366703751,1750415546392,-490.0,0.00026849,4]
[366703752,1750415546410,-490.0,0.00026849,4]
[366703753,1750415546428,-490.0,0.00026849,4]
[366703754,1750415546448,-666.55,0.00026849,4]
[366703755,1750415546466,-490.0,0.00026849,4]
[366703756,1750415546484,-490.0,0.00026849,4]
[366703757,1750415546503,-490.0,0.00026849,4]
[366703758,1750415546521,-490.0,0.00026849,4]
[366703759,1750415546538,-490.0,0.00026849,4]
[366703760,1750415546557,-490.0,0.00026849,4]
[366703761,1750415546576,-490.0,0.00026849,4]
[366703762,1750415546594,-490.0,0.00026849,4]
[366703763,1750415546614,-490.0,0.00026849,4]
[366703764,1750415546631,-490.0,0.00026849,4]
[366703765,1750415546648,-490.0,0.00026849,4]
[366703766,1750415546666,-490.0,0.00026849,4]
[366703767,1750415546684,-490.0,0.00026849,4]
[366703768,1750415546702,-490.0,0.00026849,4]
[366703769,1750415546720,-497.02,0.00026849,4]
[366703770,1750415546740,-490.0,0.00026849,4]
[366703771,1750415546758,-490.0,0.00026849,4]
[366703772,1750415546775,-490.0,0.00026849,4]
[366703773,1750415546794,-561.45,0.00026849,4]
[366703774,1750415546810,-490.0,0.00026849,4]
[366703775,1750415546827,-490.0,0.00026849,4]
[366703776,1750415546844,-490.0,0.00026849,4]
[366703777,1750415546862,-490.0,0.00026849,4]
[366703778,1750415546881,-490.0,0.00026849,4]
[366703779,1750415546899,-490.0,0.00026849,4]
[366703780,1750415546916,-673.68,0.00026849,4]
[366703781,1750415546933,-490.0,0.00026849,4]
[366703782,1750415546951,-490.0,0.00026849,4]
[366703783,1750415546967,-798.5,0.00026849,4]
[366703784,1750415546985,-490.0,0.00026849,4]
[366703785,1750415547003,-490.0,0.00026849,4]
[366703786,1750415547021,-490.0,0.00026849,4]
[366703787,1750415547039,-490.0,0.00026849,4]
[366703788,1750415547057,-490.0,0.00026849,4]
[366703789,1750415547075,-814.97,0.00026849,4]
[366703790,1750415547093,-490.0,0.00026849,4]
[366703791,1750415547110,-2237.34,0.00026849,4]
[366703792,1750415547130,-490.0,0.00026849,4]
[366703793,1750415547146,-997.34,0.00026849,4]
[366703794,1750415547164,-792.52,0.00026849,4]
[366703795,1750415547182,-490.0,0.00026849,4]
[366703796,1750415547201,-490.0,0.00026849,4]
[366703797,1750415547219,-490.0,0.00026849,4]
[366703798,1750415547237,-749.65,0.00026849,4]
[366703799,1750415547255,-490.0,0.00026849,4]
[366703800,1750415547273,-490.0,0.00026849,4]
[366703801,1750415547289,-490.0,0.00026849,4]
[366703802,1750415547306,-156.82469606,0.00026849,4]
[366703803,1750415547323,-870.19,0.00026849,4]
[366703804,1750415547341,-661.75,0.00026849,4]
[366703805,1750415547358,-490.0,0.00026849,4]
[366703806,1750415547376,-508.02,0.00026849,4]
[366703807,1750415547393,-490.0,0.00026849,4]
[366703808,1750415547409,-490.0,0.00026849,4]
[366703809,1750415547425,-1294.95,0.00026849,4]
[366703810,1750415547443,-490.0,0.00026849,4]
[366703811,1750415547461,-490.0,0.00026849,4]
[366703812,1750415547478,-490.0,0.00026849,4]
[366703813,1750415547495,-860.83,0.00026849,4]
[366703814,1750415547537,-490.0,0.00026849,4]
[366703815,1750415547555,-490.0,0.00026849,4]
[366703816,1750415547575,-546.04737285,0.00026849,4]
[366703817,1750415547594,-490.0,0.00026849,4]
[366703818,1750415547613,-686.43,0.00026849,4]
[366703819,1750415547632,-1554.68,0.00026849,4]
[366703820,1750415547652,-490.0,0.00026849,4]
[366703821,1750415547672,-490.0,0.00026849,4]
[366703822,1750415547689,-490.0,0.00026849,4]
[366703823,1750415547709,-490.0,0.00026849,4]
[366703824,1750415547727,-490.0,0.00026849,4]
[366703825,1750415547746,-490.0,0.00026849,4]
[366703826,1750415547765,-620.11,0.00026849,4]
[366703827,1750415547784,-490.0,0.00026849,4]
[366703828,1750415547802,-490.0,0.00026849,4]
[366703829,1750415547820,-1692.44,0.00026849,4]
[366703830,1750415547838,-490.0,0.00026849,4]
[366703831,1750415547857,-591.54,0.00026849,4]
[366703832,1750415547876,-757.27,0.00026849,4]
[366703833,1750415547893,-490.0,0.00026849,4]
[366703834,1750415547912,-490.0,0.00026849,4]
[366703835,1750415547932,-1478.21,0.00026849,4]
[366703836,1750415547950,-490.0,0.00026849,4]
[366703837,1750415547969,-1664.77,0.00026849,4]
[366703838,1750415547986,-490.0,0.00026849,4]
[366703839,1750415548004,-513.53,0.00026849,4]
[366703840,1750415548023,-1643.07,0.00026849,4]
[366703841,1750415548042,-2421.62,0.00026849,4]
[366703842,1750415548061,-490.0,0.00026849,4]
[366703843,1750415548078,-490.0,0.00026849,4]
[366703844,1750415548097,-1002.75,0.00026849,4]
[366703845,1750415548116,-1171.85,0.00026849,4]
[366703846,1750415548157,-490.0,0.00026849,4]
[366703847,1750415548184,-490.0,0.00026849,4]
[366703848,1750415548209,-490.0,0.00026849,4]
[366703849,1750415548235,-490.0,0.00026849,4]
[366703850,1750415548259,-490.0,0.00026849,4]
[366703851,1750415548284,-490.0,0.00026849,4]
[366703852,1750415548308,-490.0,0.00026849,4]
[366703853,1750415548328,-513.94,0.00026849,4]
[366703854,1750415548351,-1052.23,0.00026849,4]
[366703855,1750415548373,-1203.58,0.00026849,4]
[366703856,1750415548392,-1052.12,0.00026849,4]
[366703857,1750415548413,-490.0,0.00026849,4]
[366703858,1750415548432,-490.0,0.00026849,4]
[366703859,1750415548452,-1116.54,0.00026849,4]
[366703860,1750415548472,-490.0,0.00026849,4]
[366703861,1750415548491,-490.0,0.00026849,4]
[366703862,1750415548962,-593.05,0.00026849,4]
[366703863,1750415548994,-490.0,0.00026849,4]
[366703864,1750415549004,-713.86,0.00026849,4]
[366703865,1750415549014,-576.72,0.00026849,4]
[366703866,1750415549025,-1207.78,0.00026849,4]
[366703867,1750415549034,-490.0,0.00026849,4]
[366703868,1750415549045,-490.0,0.00026849,4]
[366703869,1750415549055,-885.97,0.00026849,4]
[366703870,1750415549066,-1286.94,0.00026849,4]
[366703871,1750415549076,-774.59,0.00026849,4]
[366703872,1750415549086,-663.64,0.00026849,4]
[366703873,1750415549097,-490.0,0.00026849,4]
[366703874,1750415549107,-490.0,0.00026849,4]
[366703875,1750415549118,-689.38,0.00026849,4]
[366703876,1750415549127,-556.07,0.00026849,4]
[366703877,1750415549137,-490.0,0.00026849,4]
[366703878,1750415549148,-490.0,0.00026849,4]
[366703879,1750415549159,-929.62,0.00026849,4]
[366703880,1750415549169,-852.86,0.00026849,4]
[366703881,1750415549179,-540.11,0.00026849,4]
[366703882,1750415549189,-490.0,0.00026849,4]
[366703883,1750415549200,-490.0,0.00026849,4]
[366703884,1750415549210,-490.0,0.00026849,4]
[366703885,1750415549220,-490.0,0.00026849,4]
[366703886,1750415549231,-549.5,0.00026849,4]
[366703887,1750415549241,-490.0,0.00026849,4]
[366703888,1750415549252,-719.33,0.00026849,4]
[366703889,1750415549262,-490.0,0.00026849,4]
[366703890,1750415549273,-490.0,0.00026849,4]
[366703891,1750415549285,-490.0,0.00026849,4]
[366703892,1750415549295,-992.43,0.00026849,4]
[366703893,1750415549305,-1178.9,0.00026849,4]
[366703894,1750415549316,-490.0,0.00026849,4]
[366703895,1750415549332,-2120.13,0.00026849,4]
[366703896,1750415549343,-490.0,0.00026849,4]
[366703897,1750415549354,-490.0,0.00026849,4]
[366703898,1750415549365,-797.21,0.00026849,4]
[366703899,1750415549375,-2831.45,0.00026849,4]
[366703900,1750415549386,-1657.46,0.00026849,4]
[366703901,1750415549396,-490.0,0.00026849,4]
[366703902,1750415549407,-1176.63,0.00026849,4]
[366703903,1750415549417,-835.13,0.00026849,4]
[366703904,1750415549428,-640.77,0.00026849,4]
[366703905,1750415549438,-490.0,0.00026849,4]
[366703906,1750415549449,-955.18,0.00026849,4]
[366703907,1750415549459,-759.69,0.00026849,4]
[366703908,1750415549470,-495.19,0.00026849,4]
[366703909,1750415549481,-1620.75,0.00026849,4]
[366703910,1750415549491,-2608.35,0.00026849,4]
[366703911,1750415549502,-1487.07,0.00026849,4]
[366703912,1750415549512,-490.0,0.00026849,4]
[366703913,1750415549523,-620.7,0.00026849,4]
[366703914,1750415549534,-2196.02,0.00026849,4]
[366703915,1750415549546,-490.0,0.00026849,4]
[366703916,1750415549557,-490.0,0.00026849,4]
[366703917,1750415549569,-2048.55,0.00026849,4]
[366703918,1750415549579,-490.0,0.00026849,4]
[366703919,1750415549590,-1452.89,0.00026849,4]
[366703920,1750415549602,-676.1,0.00026849,4]
[366703921,1750415549613,-490.0,0.00026849,4]
[366703922,1750415549623,-3078.01,0.00026849,4]
[366703923,1750415549634,-729.0,0.00026849,4]
[366703924,1750415549645,-490.0,0.00026849,4]
[366703925,1750415549655,-646.89,0.00026849,4]
[366703926,1750415549666,-490.0,0.00026849,4]
[366703927,1750415549676,-692.86,0.00026849,4]
[366703928,1750415549686,-1111.1,0.00026849,4]
[366703929,1750415549697,-726.03,0.00026849,4]
[366703930,1750415549708,-896.01,0.00026849,4]
[366703931,1750415549719,-522.54,0.00026849,4]
[366703932,1750415549729,-490.0,0.00026849,4]
[366703933,1750415549740,-817.65,0.00026849,4]
[366703934,1750415549751,-490.0,0.00026849,4]
[366703935,1750415549762,-1212.05,0.00026849,4]
[366703936,1750415549778,-490.0,0.00026849,4]
[366703937,1750415549789,-490.0,0.00026849,4]
[366703938,1750415549800,-1510.44,0.00026849,4]
[366703939,1750415549810,-490.0,0.00026849,4]
[366703940,1750415549821,-563.12,0.00026849,4]
[366703941,1750415549831,-17404.6,0.00026849,4]
[366703942,1750415549843,-490.0,0.00026849,4]
[366703943,1750415549855,-516.42,0.00026849,4]
[366703944,1750415549866,-1966.77,0.00026849,4]
[366703945,1750415549878,-499.64,0.00026849,4]
[366703946,1750415549890,-682.61,0.00026849,4]
[366703947,1750415549900,-496.54,0.00026849,4]
[366703948,1750415549910,-1292.76,0.00026849,4]
[366703949,1750415549921,-490.0,0.00026849,4]
[366703950,1750415549932,-532.96,0.00026849,4]
[366703951,1750415549944,-490.0,0.00026849,4]
[366703952,1750415549954,-490.0,0.00026849,4]
[366703953,1750415549964,-490.0,0.00026849,4]
[366703954,1750415549975,-3089.65,0.00026849,4]
[366703955,1750415549986,-490.0,0.00026849,4]
[366703956,1750415549996,-490.0,0.00026849,4]
[366703957,1750415550007,-1110.49,0.00026849,4]
[366703958,1750415550017,-875.85,0.00026849,4]
[366703959,1750415550027,-490.0,0.00026849,4]
[366703960,1750415550038,-490.0,0.00026849,4]
[366703961,1750415550048,-808.72,0.00026849,4]
[366703962,1750415550058,-490.0,0.00026849,4]
[366703963,1750415550069,-548.1,0.00026849,4]
[366703964,1750415550080,-490.0,0.00026849,4]
[366703965,1750415550091,-1116.64,0.00026849,4]
[366703966,1750415550101,-490.0,0.00026849,4]
[366703967,1750415550112,-741.55,0.00026849,4]
[366703968,1750415550125,-490.0,0.00026849,4]
[366703969,1750415550136,-490.0,0.00026849,4]
[366703970,1750415550147,-900.32,0.00026849,4]
[366703971,1750415550158,-3388.66,0.00026849,4]
[366703972,1750415550170,-490.0,0.00026849,4]
[366703973,1750415550181,-490.0,0.00026849,4]
[366703974,1750415550191,-1386.85,0.00026849,4]
[366703975,1750415550204,-2512.9,0.00026849,4]
[366703976,1750415550223,-490.0,0.00026849,4]
[366703977,1750415550239,-490.0,0.00026849,4]
[366703978,1750415550251,-613.06,0.00026849,4]
[366703979,1750415550261,-7882.79,0.00026849,4]
[366703980,1750415550272,-7527.62,0.00026849,4]
[366703981,1750415550283,-1533.1,0.00026849,4]
[366703982,1750415550293,-490.0,0.00026849,4]
[366703983,1750415550304,-741.74,0.00026849,4]
[366703984,1750415550314,-557.61,0.00026849,4]
[366703985,1750415550326,-2444.05,0.00026849,4]
[366703986,1750415550336,-1074.56,0.00026849,4]
[366703987,1750415550347,-490.0,0.00026849,4]
[366703988,1750415550358,-716.85,0.00026849,4]
[366703989,1750415550368,-3776.02,0.00026849,4]
[366703990,1750415550379,-490.0,0.00026849,4]
[366703991,1750415550390,-759.29,0.00026849,4]
[366703992,1750415550401,-5317.42,0.00026849,4]
[366703993,1750415550412,-490.0,0.00026849,4]
[366703994,1750415550423,-508.46,0.00026849,4]
[366703995,1750415550434,-490.0,0.00026849,4]
[366703996,1750415550444,-490.0,0.00026849,4]